Cogmind - Beta 15 @@@ ROGUE MODE // 2025.10.16 @ 20:23:57 Player: naththebg Result: Escaped! Performance ------------- Evolutions (9) 4500 Regions Visited (18) 3600 Robots Destroyed (345) 1725 Value Destroyed (18271) 18271 Prototype IDs (56) 1120 Alien Tech Used (2) 400 Bonus (18925) 18925 TOTAL SCORE: 48541 Bonus ------- Triggered High Security 1000 High Alert Combat Kills 5977 Follower Combat Kills 1530 Network Hubs Disabled 200 Met Warlord at Base 500 MAIN.C Attacked Warlord 500 Built Enhanced Grunts 300 Met R17 at Cetus 500 Met R17 at Research 2000 Met Warlord at Research 2000 Invited to Help at Command 2000 Win 3000 Friendly Fire -582 Cogmind --------- Core Integrity 129/1600 Matter 171/300 Energy 402/700 System Corruption 49% Temperature Cool (0) Movement Core (50) Location To Epsilon Eridani Parts ------- > --- POWER (2) -------- (None) > --- PROPULSION (5) --- (None) > --- UTILITY (13) ----- Experimental Energy Well Experimental Signal Interpreter Experimental Targeting Computer Experimental Core Analyzer Experimental Armor Integrity Analyzer > --- WEAPON (5) ------- (None) > --- INVENTORY (5) ---- Vortex Rifle (35) Vortex Rifle (34) Vortex Driver (28) Enhanced Hardcell Cannon Enhanced Hardcell Cannon Peak State ------------ > --- POWER ------------ Quantum Reactor Improved Quantum Reactor > --- PROPULSION ------- Biometal Medium Treads Armored Heavy Treads Improved Heavy Siege Treads > --- UTILITY ---------- Advanced Cooling System Experimental Cooling System High-capacity Storage Unit Experimental Optical Array Advanced Sensor Array Advanced Signal Interpreter Experimental Targeting Computer Experimental Core Analyzer Experimental Armor Integrity Analyzer Improved Kinecellerator Layered Medium Armor Plating Advanced Force Field Phase Redirector > --- WEAPON ----------- Vortex Driver Enhanced Hardcell Cannon Compact Linear Accelerator Compact Linear Accelerator Compact Linear Accelerator > --- INVENTORY -------- Particle Reactor Vortex Chain Reactor Advanced Medium Treads Experimental Energy Well Experimental Matter Compressor Advanced Force Field Mapping Drone Bay Vortex Rifle Vortex Rifle Vortex Driver Mass Driver Heavy Hardcell Cannon Enhanced Hardcell Cannon Enhanced Hardcell Cannon Enhanced Hardcell Cannon [Rating: 213] Favorites ----------- Power Quantum Reactor Engine Ion Engine Power Core Light Nuclear Core Reactor Quantum Reactor Propulsion Wheel Treads Light Treads Leg Aluminum Leg Wheel Wheel Flight Unit Nuclear Pulse Array Utility Large Storage Unit Device Advanced Heat Sink Storage Large Storage Unit Processor Advanced Targeting Computer Hackware Improved System Shield Protection Hardened Heavy Armor Plating Artifact Phase Redirector Weapon Compact Linear Accelerator Energy Gun Plasma Rifle Energy Cannon Matter Neutralizer Ballistic Gun Advanced KE Penetrator Ballistic Cannon Compact Linear Accelerator Launcher Scatter Rocket Array Special Weapon CPS Tube Slashing Weapon Vibroblade Build | -11 -10 -10 -8 -6 -6 -6 -6 -6 -5 -4 -4 -4 -4 -3 -3 -2 -2 -1 ------- Run | Yrd Mat Sub Scr Fac Ext Cet Arc Hub Fac Fac Upp Upp War Pro Res Res Qua Acc Slots Evolved 18 | . . . . 8 . . . . 2 2 . . . . 2 2 . 2 Power 1 | . . . . . . . . . 1 . . . . . . . . . Propulsion 3 | . . . . 2 . . . . . . . . . . . 1 . . Utility 11 | . . . . 4 . . . . 1 1 . . . . 2 1 . 2 Weapon 3 | . . . . 2 . . . . . 1 . . . . . . . . Parts Attached 208 | 5 14 9 2 22 13 7 1 . 15 27 2 3 10 5 42 9 1 21 Power 22 | 1 1 1 . 1 2 2 . . . 4 . . 2 . 5 1 1 1 Engine 7 | 1 1 1 . 1 2 . . . . 1 . . . . . . . . Core 2 | . . . . . . . . . . 1 . . 1 . . . . . Reactor 13 | . . . . . . 2 . . . 2 . . 1 . 5 1 1 1 Propulsion 46 | 1 7 1 2 3 4 2 . . 1 5 1 . . 1 12 1 . 5 Treads 26 | . 2 1 2 3 4 2 . . 1 . 1 . . 1 6 1 . 2 Leg 7 | . 5 . . . . . . . . 2 . . . . . . . . Wheel 12 | 1 . . . . . . . . . 3 . . . . 5 . . 3 Hover . | . . . . . . . . . . . . . . . . . . . Flight 1 | . . . . . . . . . . . . . . . 1 . . . Utility 79 | 1 4 1 . 9 4 1 . . 8 11 1 3 3 3 17 3 . 10 Device 40 | . 1 . . 5 4 . . . 4 3 1 2 2 3 11 1 . 3 Storage 9 | 1 2 . . . . . . . 1 1 . 1 . . 2 . . 1 Processor 11 | . . 1 . . . . . . . 4 . . 1 . 1 2 . 2 Hackware 1 | . . . . . . . . . 1 . . . . . . . . . Protection 17 | . 1 . . 4 . 1 . . 2 3 . . . . 3 . . 3 Artifact 1 | . . . . . . . . . . . . . . . . . . 1 Weapon 61 | 2 2 6 . 9 3 2 1 . 6 7 . . 5 1 8 4 . 5 Energy Gun 10 | 2 . 1 . . . . . . . 3 . . 1 . 3 . . . Energy Cannon 10 | . . 1 . 1 2 . 1 . . 1 . . 2 . 1 . . 1 Ballistic Gun 10 | . . 2 . 3 . 2 . . . . . . 1 . 2 . . . Ballistic Cannon 25 | . 2 2 . 4 1 . . . 2 2 . . 1 1 2 4 . 4 Launcher 3 | . . . . 1 . . . . 2 . . . . . . . . . Special Weapon 2 | . . . . . . . . . 2 . . . . . . . . . Impact Weapon . | . . . . . . . . . . . . . . . . . . . Slashing Weapon 1 | . . . . . . . . . . 1 . . . . . . . . Piercing Weapon . | . . . . . . . . . . . . . . . . . . . Special Melee Weapon . | . . . . . . . . . . . . . . . . . . . Unidentified Prototypes 30 | . . . . 1 . 3 1 1 2 2 . . 6 . 7 3 . 4 Parts Lost 69 | . . 1 . . . . . 3 12 9 . 1 . 11 3 . . 29 Power 7 | . . . . . . . . . 1 1 . . . . 2 . . 3 Propulsion 17 | . . . . . . . . . 2 2 . . . 4 . . . 9 Utility 23 | . . 1 . . . . . . 4 3 . . . 3 1 . . 11 Weapon 22 | . . . . . . . . 3 5 3 . 1 . 4 . . . 6 Highest Loss Streak 13 | . . 1 . . . . . 3 10 11 . 1 . 7 2 . . 13 To Critical Strikes 1 | . . . . . . . . . 1 . . . . . . . . . Average Backups 13 | 4 8 14 14 14 15 15 15 15 13 6 8 13 14 13 13 17 17 15 Power 1 | . 1 1 1 1 1 1 1 1 . . . . 1 1 1 1 1 1 Propulsion 2 | 3 3 3 4 4 2 3 3 3 1 . 1 1 1 . . 1 1 1 Utility 4 | . . 1 2 3 4 4 4 4 5 2 4 7 8 6 6 7 6 4 Weapon 5 | . 3 8 5 4 4 5 5 5 4 3 3 3 3 5 4 6 7 7 Tool/Special . | . . . . . . . . . . . . . . . . . . . Unused Backups 34 | . 2 . 4 4 . 1 . . 6 . . 1 3 . 2 . 4 7 Power 3 | . . . . 1 . 1 . . . . . . . . . . . 1 Propulsion 7 | . 1 . 1 1 . . . . 2 . . . . . . . . 2 Utility 16 | . . . . 1 . . . . 4 . . 1 2 . 2 . 3 3 Weapon 8 | . 1 . 3 1 . . . . . . . . 1 . . . 1 1 Tool/Special . | . . . . . . . . . . . . . . . . . . . Average Slot Usage (%) 89 | . 93 99 100 98 100 89 86 85 81 66 96 92 90 81 83 85 86 86 Engine 4 | . 14 14 14 6 6 1 . . . 2 . . . . . . . . Reactor 5 | . . . . . . 4 6 6 10 1 10 10 9 7 7 8 8 7 Treads 14 | . 14 28 28 25 26 16 13 13 10 3 3 5 5 3 9 12 13 11 Wheel 2 | . . . . . . . . . . 3 8 10 10 6 4 . . . Device 11 | . . . . 12 16 20 20 20 16 7 9 13 13 13 16 16 17 17 Storage 7 | . 14 14 14 6 6 6 6 6 4 4 5 5 5 5 4 4 4 6 Processor 11 | . . 7 14 6 6 6 6 6 3 14 15 15 12 15 14 17 17 18 Protection 6 | . 7 6 . 12 9 6 6 6 7 4 10 6 9 5 5 4 4 5 Energy Gun 1 | . 8 . . . . . . . . . 5 3 . . 4 . . . Energy Cannon 4 | . . 2 . 3 8 6 6 6 1 2 15 15 15 7 . . . . Ballistic Gun 5 | . . 12 28 7 . 1 6 5 10 . . . . 3 2 3 . . Ballistic Cannon 10 | . 19 13 . 13 17 17 13 12 8 5 . . . 3 9 17 21 18 Slashing Weapon 1 | . . . . . . . . . . 4 5 5 5 5 2 . . . Peak Build Rating 213 | 5 8 15 19 49 55 99 101 99 123 92 104 101 122 123 156 189 191 213 Average Rating 91 | 3 6 12 16 42 51 83 99 98 114 61 96 96 102 106 124 180 190 193 On Entrance 76 | . 5 8 15 19 46 54 99 99 90 20 92 97 93 122 60 155 189 191 Naked Turns . | . . . . . . . . . . . . . . . . . . . Heaviest Build 177 | 12 34 40 33 62 69 79 79 79 127 97 97 106 116 111 158 165 167 177 Greatest Support 170 | 16 40 40 48 88 80 160 160 160 160 70 70 70 70 93 140 170 170 170 Greatest Overweight (x) 12 | 1 1 . . . . . . . . 4 4 5 5 9 9 . . 12 Average Overweight (x) . | . . . . . . . . . . . 3 2 4 3 1 . . . Largest Inventory Capacity 20 | 8 15 15 15 15 15 15 15 15 15 10 10 15 15 15 20 20 20 20 Average Capacity 15 | 7 10 15 15 15 15 15 15 15 14 9 10 14 15 15 15 20 20 19 Most Carried 20 | 7 13 15 15 15 15 15 15 15 15 10 10 15 15 15 20 20 20 20 Average Carried 14 | 4 8 14 14 14 14 15 14 15 14 6 9 13 14 14 15 19 19 17 Final Capacity 20 | 8 15 15 15 15 15 15 15 15 5 10 10 15 15 15 20 20 20 5 Final Carried 20 | 7 13 15 15 15 15 15 15 15 5 9 10 15 15 15 20 20 20 5 Class Distribution -------------------- 30% | Scavenger-Tank 26% | Mutant 18% | Scavenger-Gunner 8% | Tank 6% | Commander-Tank 6% | Gunner Dominant Class ---------------- Mutant | -10/Materials Mutant | -10/Subcaves Mutant | -8/Scraptown Tank | -6/Factory Commander-Tank | -6/Extension Commander-Tank | -6/Cetus Commander-Tank | -6/Archives Commander-Tank | -6/Hub_04(d) Scavenger-Tank | -5/Factory Scavenger-Mutant | -4/Factory Scavenger-Tank | -4/Upper Caves Scavenger-Tank | -4/Upper Caves Scavenger-Tank | -4/Warlord Scavenger-Tank | -3/Proximity Caves Scavenger-Gunner | -3/Research Scavenger-Gunner | -2/Research Scavenger-Gunner | -2/Quarantine Scavenger-Gunner | -1/Access Resources | -11 -10 -10 -8 -6 -6 -6 -6 -6 -5 -4 -4 -4 -4 -3 -3 -2 -2 -1 ----------- Run | Yrd Mat Sub Scr Fac Ext Cet Arc Hub Fac Fac Upp Upp War Pro Res Res Qua Acc Matter Collected 16017 | 250 268 378 10 1134 1052 283 110 532 1194 803 338 76 149 319 1670 1050 597 5804 Remotely 3661 | . . . . 1119 400 . . . . 377 . . . . . . . 1765 Salvage Created 16426 | . 473 572 . 1467 1171 262 43 1267 2321 494 282 473 . 380 562 870 263 5526 Parts 653 | . 29 22 . 68 44 7 . 49 100 32 2 22 . 24 18 21 13 202 Haulers Intercepted 10 | . 2 . . 1 . . . 2 1 . . . . . 2 . . 2 Recyclers Shooed 10 | . 1 . . 3 . . . 1 3 . . . . . . . . 2 Parts Field Recycled . | . . . . . . . . . . . . . . . . . . . Retrieved Matter . | . . . . . . . . . . . . . . . . . . . Parts Self-Destructed 62 | . . 9 . . . . . . . . 2 25 . 26 . . . . Prevented . | . . . . . . . . . . . . . . . . . . . Kills | -11 -10 -10 -8 -6 -6 -6 -6 -6 -5 -4 -4 -4 -4 -3 -3 -2 -2 -1 ------- Run | Yrd Mat Sub Scr Fac Ext Cet Arc Hub Fac Fac Upp Upp War Pro Res Res Qua Acc Combat Hostiles Destroyed 254 | . 11 10 . 22 19 4 1 14 41 13 4 7 . 10 5 12 5 76 Guns 41 | . 5 3 . 8 . . 1 5 14 . 1 . . 1 2 1 . . Cannons 194 | . 6 6 . 11 19 3 . 9 21 12 2 5 . 6 3 11 5 75 AOE 14 | . . . . 3 . . . . 6 1 . . . 3 . . . 1 Classes Destroyed 25 | . 6 2 . 7 . . . 2 2 . . . . . 2 1 1 2 Worker 15 | . . . . 1 . . . 3 1 2 . . . . 3 . . 5 Builder 15 | . 1 . . . 1 . . 2 2 1 . . . . . . 1 7 Tunneler 2 | . . . . 1 . . . . . 1 . . . . . . . . Hauler 10 | . 2 . . 1 . . . 2 1 . . . . . 2 . . 2 Recycler 22 | . . . . 3 1 . . 1 2 1 . . . . . 2 . 12 Mechanic 1 | . . . . . . . . . 1 . . . . . . . . . Operator 5 | . 1 . . 1 . . . 1 1 . . . . . 1 . . . Watcher 17 | . 2 . . 1 . 1 . . 4 . . . . . 1 2 1 5 Swarmer 23 | . 3 . . 3 . . . . 8 5 . . . 3 1 . . . Saboteur 3 | . . . . . . . . . 1 . . . . . . . . 2 Grunt 86 | . 8 . . 9 8 . . 9 11 2 2 3 . 3 . 3 . 28 Brawler 7 | . . . . 1 . . . . 2 . . . . . . . . 4 Duelist 11 | . . . . . . . . 1 3 1 . . . 1 . 1 . 4 Protector 2 | . . . . . . . . 1 . 1 . . . . . . . . Researcher 1 | . . . . . . . . . . . . . . . . . 1 . Sentry 25 | . . 1 . 4 9 . 1 1 5 . . . . . 1 . . 3 Demolisher 3 | . . . . . . . . . . . . . . . 1 2 . . Specialist 2 | . . . . . . . . . . . . . . . . . . 2 Hunter 20 | . . . . 1 . . . 2 4 . 2 1 . . . 1 2 7 Programmer 49 | . . . . 3 1 . . . 7 4 . 3 . 2 . 1 3 25 Heavy 1 | . . . . . . . . . . . . . . . . . . 1 Behemoth 3 | . . . . 1 1 . . . . . . . . 1 . . . . Cetus Guard 4 | . . . . . . 4 . . . . . . . . . . . . Enhanced Grunt 1 | . . . . . . . . 1 . . . . . . . . . . Striker 3 | . . . . . . . . . . . . . . . 2 1 . . Executioner 3 | . . . . . . . . . . . . . . . . 3 . . Subdweller 9 | . . 9 . . . . . . . . . . . . . . . . Thug 1 | . . . . . . . . 1 . . . . . . . . . . Guerrilla 1 | . . . . . . . . 1 . . . . . . . . . . Best Kill Streak 16 | . 4 4 . 8 3 3 1 11 15 5 2 3 . 4 2 4 4 16 Combat Bots Only 14 | . 4 4 . 7 3 3 1 9 14 5 2 3 . 4 2 4 3 12 Max Kills in Single Turn 5 | . 1 1 . 2 2 1 1 5 4 1 1 1 . 3 1 1 2 3 Gunslinging . | . . . . . . . . . . . . . . . . . . . Exploded 3 | . . . . 2 . . . . 3 1 . . . 3 . . . 1 Melee . | . . . . . . . . . . . . . . . . . . . Uniques/NPCs Destroyed . | . . . . . . . . . . . . . . . . . . . Combat | -11 -10 -10 -8 -6 -6 -6 -6 -6 -5 -4 -4 -4 -4 -3 -3 -2 -2 -1 -------- Run | Yrd Mat Sub Scr Fac Ext Cet Arc Hub Fac Fac Upp Upp War Pro Res Res Qua Acc Hostile Shots Fired 1724 | . 44 33 . 108 105 9 7 52 315 117 60 27 . 114 29 17 57 630 Missed 475 | . 11 7 . 32 40 5 3 18 89 33 16 3 . 16 6 7 10 179 Hits 1249 | . 33 26 . 76 65 4 4 34 226 84 44 24 . 98 23 10 47 451 Melee 25 | . . . . 1 . . . . 8 8 . . . 2 . . . 6 Projectile 1224 | . 33 26 . 75 65 4 4 34 218 76 44 24 . 96 23 10 47 445 AOE 2 | . . . . . . . . . . . . . 1 . . 1 . . Critical Strikes 68 | . . . . 3 . . . 4 11 7 . 2 . 13 . . 2 26 Actively Blocked 2 | . . . . 1 . . . . . . . . . . . . . 1 Part Disruptions 9 | . . . . . . . . 1 . 1 . . . 1 . . 1 5 Damage Taken 20970 | . 342 567 . 1102 462 81 87 845 3582 1835 654 447 82 2121 461 147 460 7695 Core 2497 | . 86 79 . 68 62 . . 22 212 180 18 56 . 214 17 . 12 1471 Absorbed by Shields 5032 | . . . . . 241 38 . . 777 . . . 31 227 . 155 478 3085 Reduced by Siege Mode 588 | . . . . . . . . . 73 40 32 35 . 245 . . 13 150 Redirected to Core 231 | . . . . . . . . . . . . . . . . . . 231 Redirected to Shielding 274 | . . . . 49 10 . . . . . . . . . . . . 215 Ignored by Resistances 486 | . . . . . 19 33 12 49 107 . 148 33 . 53 32 . . . Regen/Repaired (Parts) 918 | . . . 421 95 . . . . 102 . . . 210 . 90 . . . Core Remaining (%) 69 | 100 . . 34 . . . . 82 78 . . . . 59 98 . 99 8 Volleys Fired 712 | . 38 62 . 62 65 11 5 34 76 43 15 13 1 40 29 31 14 173 Largest 5 | . 2 2 . 4 4 4 4 4 4 2 4 4 1 4 5 5 5 5 Hottest 360 | . 90 113 . 199 257 206 204 204 197 105 360 360 100 304 295 279 279 286 Shots Fired 2065 | . 76 94 . 214 194 43 21 133 248 60 32 39 1 82 94 133 53 548 Gun 401 | . 18 47 . 73 . . 5 32 122 . 7 12 . 21 36 28 . . Cannon 1658 | . 58 47 . 140 194 43 16 101 121 60 25 27 1 61 58 105 53 548 Launcher 6 | . . . . 1 . . . . 5 . . . . . . . . . Special . | . . . . . . . . . . . . . . . . . . . Kinetic 1699 | . 58 61 . 179 123 33 15 100 229 55 . . . 54 65 133 53 541 Thermal 336 | . 9 33 . 35 71 10 6 33 18 5 32 39 . 17 28 . . . Explosive 1 | . . . . . . . . . 1 . . . . . . . . . Electromagnetic 9 | . 9 . . . . . . . . . . . . . . . . . Entropic 20 | . . . . . . . . . . . . . 1 11 1 . . 7 Robot Hit Streak 49 | . 5 12 . 20 15 15 16 22 24 33 34 39 . 42 49 12 10 17 Robot Miss Streak 6 | . 6 3 . 2 2 4 1 2 3 3 1 . . 2 2 4 3 6 Penetration Max 1 | . . . . . . . . 1 1 1 . . . . . 1 . 1 Secondary Targets 1 | . 1 . . . . . . . . . . . . . . . . . Max Gunslinging Chain 1 | . 1 . . . . . . . . . . . . . . . . . Shots Hit Robots 1194 | . 36 51 . 126 117 23 15 79 152 53 27 25 . 66 51 75 25 273 Core Hits 587 | . 20 16 . 56 42 12 4 43 111 23 8 11 . 18 21 27 13 162 Critical Kills 12 | . . 1 . 1 . 1 . 1 6 . 1 1 . . . . . . Critical Parts Destroyed 13 | . . . . . . . 1 2 9 . . . . 1 . . . . Critical Strikes 104 | . 3 1 . 2 8 1 1 3 32 8 1 3 . 4 5 3 2 27 Burn 6 | . . . . . . . . . . . . 2 . . 4 . . . Meltdown 4 | . . 1 . . . 1 . . . . 1 1 . . . . . . Destroy 27 | . . . . 1 . . 1 3 20 . . . . 1 1 . . . Blast 61 | . 3 . . 1 8 . . . 12 8 . . . . . 3 2 24 Sunder 6 | . . . . . . . . . . . . . . 3 . . . 3 Melee Attacks 13 | . . . . . . . . . . 7 . . . . 6 . . . Impact . | . . . . . . . . . . . . . . . . . . . Slashing 13 | . . . . . . . . . . 7 . . . . 6 . . . Piercing . | . . . . . . . . . . . . . . . . . . . Sneak Attacks 7 | . . . . . . . . . . 4 . . . . 3 . . . Combat Hostiles . | . . . . . . . . . . . . . . . . . . . Follow-up Attacks . | . . . . . . . . . . . . . . . . . . . Damage Inflicted 50187 | . 690 1168 . 3500 3387 725 466 3021 7148 2382 890 777 . 3201 2322 3161 1213 16136 Guns 7240 | . 172 560 . 1166 . . 113 535 2765 . 111 134 . 558 633 493 . . Cannons 38064 | . 456 608 . 1899 3382 725 353 1900 2614 1911 779 643 . 2420 1266 2621 1204 15283 Explosions 3731 | . 38 . . 426 . . . 586 1694 100 . . . 223 . . . 664 Melee 792 | . . . . . . . . . . 369 . . . . 423 . . . Ramming 360 | . 24 . . 9 5 . . . 75 2 . . . . . 47 9 189 Kinetic 37263 | . 456 623 . 2420 2081 516 315 1653 5497 1703 . . . 1547 1355 3114 1204 14779 Thermal 7849 | . 123 545 . 1071 1301 209 151 782 527 208 890 777 . 721 544 . . . Explosive 1811 | . . . . . . . . . 1047 100 . . . . . . . 664 Electromagnetic 675 | . 87 . . . . . . 586 2 . . . . . . . . . Impact . | . . . . . . . . . . . . . . . . . . . Slashing 792 | . . . . . . . . . . 369 . . . . 423 . . . Piercing . | . . . . . . . . . . . . . . . . . . . Entropic 1437 | . . . . . . . . . . . . . . 933 . . . 504 Highest Corruption 49 | . . . . . 5 5 5 13 2 3 3 4 4 3 . . 1 49 Average Corruption 7 | . . . . . 2 5 5 5 1 2 3 3 4 2 . . 1 18 Corruption Purged . | . . . . . . . . . . . . . . . . . . . Corruption Blocked . | . . . . . . . . . . . . . . . . . . . Effects 237 | . . . . . 11 14 6 11 12 2 11 17 . 34 . . 1 118 Message Errors 46 | . . . . . 5 3 1 3 1 . 2 7 . 7 . . . 17 Matter Fused 56 | . . . . . 2 2 2 1 2 . 4 6 . 10 . . . 27 Heat Flow Errors 28 | . . . . . 1 1 1 1 3 . 3 4 . 4 . . . 10 Energy Discharges 24 | . . . . . 2 3 1 2 1 . 2 . . 4 . . . 9 Parts Rejected 4 | . . . . . . 1 . . . . . . . . . . . 3 Parts Fused 3 | . . . . . . . . . . . . . . 1 . . . 2 Data Loss (minor) 20 | . . . . . 1 3 . . 1 1 . . . 3 . . . 11 Data Loss (major) 6 | . . . . . . . . . 1 . . . . 2 . . 1 2 Misfires 8 | . . . . . . . 1 2 . . . . . 2 . . . 3 Alerts 6 | . . . . . . 1 . 1 . 1 . . . . . . . 3 Misdirections 2 | . . . . . . . . . . . . . . . . . . 2 Weapon Failures 34 | . . . . . . . . 1 3 . . . . 1 . . . 29 Overload Shots . | . . . . . . . . . . . . . . . . . . . Overflow Damage 1742 | . . . . 51 82 . 10 24 123 237 33 . . 10 168 140 65 799 Projectiles 1293 | . . . . 20 82 . 10 24 123 68 33 . . 10 14 140 65 704 Explosions 126 | . . . . 31 . . . . . . . . . . . . . 95 Melee 323 | . . . . . . . . . . 169 . . . . 154 . . . Knockbacks 170 | . 4 1 . 7 18 . . 6 13 19 . . . 5 7 12 6 72 Impact 2 | . . . . . . . . . 1 . . . . . . . . 1 Kinetic 156 | . 4 1 . 7 16 . . 6 11 16 . . . 5 6 12 5 67 Secondary 12 | . . . . . 2 . . . 1 3 . . . . 1 . 1 4 Self-Inflicted Damage 244 | . . . . . . . . 89 69 . . . . . . . . 86 Shots 5 | . . . . . . . . 1 3 . . . . . . . . 1 Rammed 23 | . 1 . . 1 1 . . . 4 2 . . . . . 1 1 12 Targets Rammed 26 | . 4 . . 1 1 . . . 4 2 . . . . . 1 1 12 Kicked 3 | . 3 . . . . . . . . . . . . . . . . . Crushed . | . . . . . . . . . . . . . . . . . . . Highest Temperature 524 | . 168 96 . 71 187 92 182 151 408 99 485 428 40 524 379 369 . 198 Average Temperature 99 | . 48 33 . 24 37 60 53 20 102 26 197 174 23 173 157 131 . 26 Received Heat Transfer 3157 | . 156 123 . 288 171 . 18 120 767 201 69 73 . 464 108 8 . 591 Effects 31 | . . . . . . . . . 7 . 2 2 . 10 3 7 . . Shutdowns 7 | . . . . . . . . . 2 . 1 1 . 3 . . . . Energy Bleed 2 | . . . . . . . . . . . 1 . . . . 1 . . Interference 19 | . . . . . . . . . 4 . . 1 . 6 3 5 . . Matter Decay 2 | . . . . . . . . . 1 . . . . . . 1 . . Damage (minor) 1 | . . . . . . . . . . . . . . 1 . . . . Siege Activations 24 | . . . . . . . . . 8 4 1 3 . 3 . 1 2 2 Total Turns 386 | . . . . . . . . . 133 57 23 30 . 55 . 7 24 57 Longest Duration 56 | . . . . . . . . . 56 36 23 22 . 41 . 7 15 43 Martial Activations . | . . . . . . . . . . . . . . . . . . . Shielding Activations . | . . . . . . . . . . . . . . . . . . . Robots Disrupted . | . . . . . . . . . . . . . . . . . . . Combat Hostiles . | . . . . . . . . . . . . . . . . . . . Robots Corrupted 1 | . . . . . . . . 1 . . . . . . . . . . Combat Hostiles . | . . . . . . . . . . . . . . . . . . . Parts Fried 5 | . . . . . 1 . . 4 . . . . . . . . . . Impact Corruptions 1 | . . . . . . . . . 1 . . . . . . . . . Robots Melted 5 | . . 1 . . . 1 . . . . 1 2 . . . . . . Combat Hostiles 5 | . . 1 . . . 1 . . . . 1 2 . . . . . . Parts Melted 23 | . 1 4 . . 2 . . 1 1 . 5 5 . 1 3 . . . Heat Transferred 9276 | . 309 717 . 1040 1536 259 185 943 798 185 846 1174 . 248 1036 . . . Parts Sabotaged . | . . . . . . . . . . . . . . . . . . . Parts Stolen . | . . . . . . . . . . . . . . . . . . . Parts Stripped . | . . . . . . . . . . . . . . . . . . . Power Chain Reactions 3 | . 1 . . . . . . . 1 . . . . 1 . . . . Alert | -11 -10 -10 -8 -6 -6 -6 -6 -6 -5 -4 -4 -4 -4 -3 -3 -2 -2 -1 ------- Run | Yrd Mat Sub Scr Fac Ext Cet Arc Hub Fac Fac Upp Upp War Pro Res Res Qua Acc Maximum Alert Level 5 | . . . . 2 2 2 1 5 5 4 . . . . . . 1 5 Low Security (%) 40 | 100 100 . . 50 9 . 80 12 . . . . . . 100 100 74 2 Level 1 16 | . . . . 41 65 78 19 19 . . . . . . . . 25 4 Level 2 9 | . . . . 7 25 21 . 3 . . . . . . . . . 30 Level 3 9 | . . . . . . . . 29 54 11 . . . . . . . 8 Level 4 17 | . . . . . . . . 28 23 88 . . . . . . . 41 Level 5 2 | . . . . . . . . 6 3 . . . . . . . . 9 High Security 3 | . . . . . . . . . 18 . . . . . . . . 4 Max Security . | . . . . . . . . . . . . . . . . . . . Peak Influence 2209 | . 127 . . 636 489 434 209 1849 2209 1318 . . . . 76 154 238 2092 Initial 1100 | . . . . . 303 257 145 58 891 1100 . . . . . 36 79 114 Average 541 | . 27 . . 191 316 350 182 867 1229 1203 . . . . 8 56 134 1114 Influence Increases 11822 | . 330 20 . 1007 828 347 184 2070 1934 575 115 205 . 240 258 485 302 2922 Destroy 0b10 Robot/C 5480 | . 220 20 . 440 440 160 80 640 820 240 80 160 . 200 100 240 120 1520 Destroy 0b10 Robot/NC 490 | . 30 . . 40 35 10 . 65 60 30 . . . . 35 20 10 155 Destroy Leader 1116 | . 48 . . 144 32 . . 116 180 40 20 40 . 40 26 84 22 324 Allied During Kill 1179 | . . . . . 154 170 80 770 . . . 5 . . . . . . Successful Hack 119 | . . . . 3 70 . . . 5 . . . . . . . 27 14 Disable Machine 1170 | . 30 . . 105 45 . 15 150 450 75 . . . . 45 45 60 150 Anti-Garrison Action 300 | . . . . 150 . . . 150 . . . . . . . . . . Destroy Structure 1458 | . 2 . . 80 22 7 9 164 254 70 . . . . 52 96 48 654 Partial Spotted 45 | . . . . . . . . 15 . 15 . . . . . . 15 . Lose Combat Pursuer 465 | . . . . 45 30 . . . 165 105 15 . . . . . . 105 Influence Decreases 9753 | . 330 20 . 386 989 443 379 419 1555 1616 684 563 254 240 194 407 253 1021 Entered New Map 3879 | . . . . . 318 203 219 111 929 1122 438 117 254 . . 28 63 77 Time Decay 4771 | . 214 20 . 386 571 180 60 198 506 404 246 416 . 200 167 379 190 634 Lost Part 607 | . . . . . . . . 30 120 90 . 10 . 40 27 . . 290 Lost Ally 380 | . . . . . 100 60 100 80 . . . 20 . . . . . 20 Purge Threat 116 | . 116 . . . . . . . . . . . . . . . . . Squads Dispatched 72 | . 2 . . 12 2 . . 11 16 3 . . . . 4 2 1 19 Investigation 7 | . 2 . . 1 1 . . . 1 . . . . . 2 . . . Extermination 14 | . . . . 3 . . . . 2 2 . . . . . . 1 6 Reinforcement 19 | . . . . 1 1 . . 6 2 . . . . . 2 2 . 5 Assault 21 | . . . . 3 . . . 4 11 1 . . . . . . . 2 Garrison 11 | . . . . 4 . . . 1 . . . . . . . . . 6 Intercept . | . . . . . . . . . . . . . . . . . . . Searches Triggered . | . . . . . . . . . . . . . . . . . . . Construction Impeded 5 | . . . . . 1 . . 2 . . . . . . . . . 2 Haulers Reinforced 4 | . . . . . . . . 2 1 . . . . . . 1 . . Active Scanning Responses . | . . . . . . . . . . . . . . . . . . . Cargo Convoy Interrupts . | . . . . . . . . . . . . . . . . . . . Stealth | -11 -10 -10 -8 -6 -6 -6 -6 -6 -5 -4 -4 -4 -4 -3 -3 -2 -2 -1 --------- Run | Yrd Mat Sub Scr Fac Ext Cet Arc Hub Fac Fac Upp Upp War Pro Res Res Qua Acc Distress Signals 30 | . . . . 2 1 2 1 4 2 . . . . . 3 11 . 4 Communications Jammed . | . . . . . . . . . . . . . . . . . . . Distress Signals . | . . . . . . . . . . . . . . . . . . . Times Spotted 398 | . 18 10 . 27 27 10 6 38 66 20 4 5 8 11 24 25 8 91 Peak Tracking Total 12 | . 4 3 . 4 3 5 2 10 12 6 3 3 4 4 5 6 4 8 Tactical Retreats 14 | . . . . 2 2 . . . 2 3 1 . . . . . . 4 Traps | -11 -10 -10 -8 -6 -6 -6 -6 -6 -5 -4 -4 -4 -4 -3 -3 -2 -2 -1 ------- Run | Yrd Mat Sub Scr Fac Ext Cet Arc Hub Fac Fac Upp Upp War Pro Res Res Qua Acc Traps Triggered 6 | . 1 1 . . 2 . . 1 . . . . . . . . . 1 Indirectly . | . . . . . . . . . . . . . . . . . . . Trap Hack Attempts . | . . . . . . . . . . . . . . . . . . . Triggered . | . . . . . . . . . . . . . . . . . . . Disarmed . | . . . . . . . . . . . . . . . . . . . Reprogrammed . | . . . . . . . . . . . . . . . . . . . Reused . | . . . . . . . . . . . . . . . . . . . Traps Extracted . | . . . . . . . . . . . . . . . . . . . Installed . | . . . . . . . . . . . . . . . . . . . Triggered . | . . . . . . . . . . . . . . . . . . . Machines | -11 -10 -10 -8 -6 -6 -6 -6 -6 -5 -4 -4 -4 -4 -3 -3 -2 -2 -1 ---------- Run | Yrd Mat Sub Scr Fac Ext Cet Arc Hub Fac Fac Upp Upp War Pro Res Res Qua Acc Machines Disabled 83 | . 2 . . 8 4 1 1 11 30 5 . . 1 . 3 3 4 10 Max in Single Turn 10 | . 1 . . 3 1 1 . 6 10 2 . . 1 . 1 1 1 3 Garrison Access 5 | . . . . 1 . . . 1 . . . . . . 2 1 . . Network Hub 1 | . . . . . . . . 1 . . . . . . . . . . Machines Repaired . | . . . . . . . . . . . . . . . . . . . Machines Dismantled . | . . . . . . . . . . . . . . . . . . . Machines Sabotaged . | . . . . . . . . . . . . . . . . . . . Overloaded Fab Kills . | . . . . . . . . . . . . . . . . . . . Hacking | -11 -10 -10 -8 -6 -6 -6 -6 -6 -5 -4 -4 -4 -4 -3 -3 -2 -2 -1 --------- Run | Yrd Mat Sub Scr Fac Ext Cet Arc Hub Fac Fac Upp Upp War Pro Res Res Qua Acc Machines Accessed 48 | . 2 3 . 6 13 . . . 5 2 . 1 6 . 7 . 1 2 Terminals 24 | . 1 . . 3 12 . . . 4 . . . . . 2 . 1 1 Fabricators 1 | . . . . 1 . . . . . . . . . . . . . . Repair Stations 4 | . . . . 1 . . . . 1 1 . . . . 1 . . . Recycling Units 6 | . 1 . . 1 1 . . . . 1 . . . . 2 . . . Scanalyzers . | . . . . . . . . . . . . . . . . . . . Garrison Access 3 | . . . . . . . . . . . . . . . 2 . . 1 Total Hacks 119 | . 4 6 . 9 30 . . . 14 7 . 5 18 . 20 . 1 5 Successful 62 | . 2 6 . 6 10 . . . 3 2 . 5 18 . 8 . 1 1 Failed 57 | . 2 . . 3 20 . . . 11 5 . . . . 12 . . 4 Catastrophic 7 | . . . . . 1 . . . 3 . . . . . 2 . . 1 Database Lockouts . | . . . . . . . . . . . . . . . . . . . Manual 32 | . . . . 5 5 1 . . 13 1 . . . . 4 . . 3 Terminals 56 | . 1 . . 5 29 . . . 11 . . . . . 5 . 1 4 Fabricators 1 | . . . . 1 . . . . . . . . . . . . . . Repair Stations 7 | . . . . 1 . . . . 3 1 . . . . 2 . . . Recycling Units 19 | . 3 . . 2 1 . . . . 6 . . . . 7 . . . Scanalyzers . | . . . . . . . . . . . . . . . . . . . Garrison Access 7 | . . . . . . . . . . . . . . . 6 . . 1 Terminal Hacks 43 | . 1 6 . 2 7 . . . 1 . . 5 18 . 2 . 1 . Record 16 | . . 5 . . . . . . . . . 5 5 . 1 . . . Prototype ID Bank 15 | . . . . . 3 . . . . . . . 12 . . . . . Open Door 6 | . . 1 . 1 3 . . . . . . . 1 . . . . . Level Access Points 1 | . . . . . . . . . . . . . . . . . 1 . Branch Access Points 2 | . . . . 1 1 . . . . . . . . . . . . . Alert Level 2 | . . . . . . . . . 1 . . . . . 1 . . . Unreport Threat 1 | . 1 . . . . . . . . . . . . . . . . . Fabricator Hacks . | . . . . . . . . . . . . . . . . . . . Repair Station Hacks . | . . . . . . . . . . . . . . . . . . . Recycling Unit Hacks 8 | . 1 . . 2 1 . . . . 2 . . . . 2 . . . Report Inventory 3 | . 1 . . 1 . . . . . 1 . . . . . . . . Retrieve Components 5 | . . . . 1 1 . . . . 1 . . . . 2 . . . Scanalyzer . | . . . . . . . . . . . . . . . . . . . Garrison Access Hacks 2 | . . . . . . . . . . . . . . . 2 . . . Seal Access 2 | . . . . . . . . . . . . . . . 2 . . . Unauthorized Hacks 9 | . . . . 2 2 . . . 2 . . . . . 2 . . 1 Terminals 6 | . . . . 1 2 . . . 1 . . . . . 1 . . 1 Botnet 6 | . . . . 1 2 . . . 1 . . . . . 1 . . 1 Fabricators . | . . . . . . . . . . . . . . . . . . . Repair Stations 3 | . . . . 1 . . . . 1 . . . . . 1 . . . Patch 3 | . . . . 1 . . . . 1 . . . . . 1 . . . Recycling Units . | . . . . . . . . . . . . . . . . . . . Scanalyzers . | . . . . . . . . . . . . . . . . . . . Garrison Access . | . . . . . . . . . . . . . . . . . . . Data Cores Recovered 3 | . 1 . . 1 . . . . 1 . . . . . . . . . Used 2 | . 1 . . 1 . . . . . . . . . . . . . . Hacking Detections 26 | . 1 . . 4 10 . . . 4 1 . . . . 4 . . 2 Full Trace Events 1 | . . . . . . . . . . . . . . . 1 . . . Feedback Events . | . . . . . . . . . . . . . . . . . . . Feedback Blocked . | . . . . . . . . . . . . . . . . . . . Robot Schematics Acquired . | . . . . . . . . . . . . . . . . . . . Robots Built . | . . . . . . . . . . . . . . . . . . . Authchips . | . . . . . . . . . . . . . . . . . . . Time . | . . . . . . . . . . . . . . . . . . . Total Robot Build Rating . | . . . . . . . . . . . . . . . . . . . Part Schematics Acquired . | . . . . . . . . . . . . . . . . . . . Parts Built . | . . . . . . . . . . . . . . . . . . . Authchips . | . . . . . . . . . . . . . . . . . . . Time . | . . . . . . . . . . . . . . . . . . . Total Part Build Rating . | . . . . . . . . . . . . . . . . . . . Parts Repaired . | . . . . . . . . . . . . . . . . . . . Time . | . . . . . . . . . . . . . . . . . . . Parts Recycled . | . . . . . . . . . . . . . . . . . . . Recycled Matter . | . . . . . . . . . . . . . . . . . . . Retrieved Matter . | . . . . . . . . . . . . . . . . . . . Retrieved Components 14 | . . . . 1 2 . . . . 2 . . . . 9 . . . Parts Scanalyzed . | . . . . . . . . . . . . . . . . . . . Part Schematics Acquired . | . . . . . . . . . . . . . . . . . . . Parts Damaged . | . . . . . . . . . . . . . . . . . . . Bothacking | -11 -10 -10 -8 -6 -6 -6 -6 -6 -5 -4 -4 -4 -4 -3 -3 -2 -2 -1 ------------ Run | Yrd Mat Sub Scr Fac Ext Cet Arc Hub Fac Fac Upp Upp War Pro Res Res Qua Acc Used RIF Installer . | . . . . . . . . . . . . . . . . . . . Robots Hacked . | . . . . . . . . . . . . . . . . . . . Non-combat . | . . . . . . . . . . . . . . . . . . . Combat . | . . . . . . . . . . . . . . . . . . . Robot Hacks Applied . | . . . . . . . . . . . . . . . . . . . Relay Couplers Released 11 | . . . . 1 . . . 3 . . . . . . . 4 . 3 Machine Destruction 8 | . . . . 1 . . . 3 . . . . . . . 4 . . Programmers 3 | . . . . . . . . . . . . . . . . . . 3 Fabnet Peak Effective % . | . . . . . . . . . . . . . . . . . . . Robots Rewired 17 | . . . . . 17 . . . . . . . . . . . . . Allies Hacked . | . . . . . . . . . . . . . . . . . . . Hacks Repelled . | . . . . . . . . . . . . . . . . . . . Allies | -11 -10 -10 -8 -6 -6 -6 -6 -6 -5 -4 -4 -4 -4 -3 -3 -2 -2 -1 -------- Run | Yrd Mat Sub Scr Fac Ext Cet Arc Hub Fac Fac Upp Upp War Pro Res Res Qua Acc Total Allies 32 | . . . . . 25 5 . . . . . 2 . . . . . . Largest Group 18 | . . . . . 16 18 18 10 . . . 2 . . . . . . Highest-Rated Group 1000 | . . . . . 623 1000 1000 591 . . . 58 . . . . . . Highest-Rated Ally 159 | . . . . . 159 153 137 96 . . . 29 . . . . . . Total Orders 1 | . . . . . . . . . . . . . . . . . . 1 EXPLORE 1 | . . . . . . . . . . . . . . . . . . 1 Ally Attacks 238 | . . . . . 66 39 37 94 . . . 2 . . . . . . Total Damage 6959 | . . . . . 1761 813 774 3511 . . . 100 . . . . . . Kills 43 | . . . . . 8 5 5 24 . . . 1 . . . . . . Allies Corrupted 4 | . . . . . 2 . . 2 . . . . . . . . . . Allies Melted . | . . . . . . . . . . . . . . . . . . . Intel | -11 -10 -10 -8 -6 -6 -6 -6 -6 -5 -4 -4 -4 -4 -3 -3 -2 -2 -1 ------- Run | Yrd Mat Sub Scr Fac Ext Cet Arc Hub Fac Fac Upp Upp War Pro Res Res Qua Acc Active Infowar (turns) 7957 | . . . . . . . . . . . 476 1015 1371 950 355 1075 399 2316 Optics 4144 | . . . . . . . . . . . . . . . 354 1075 399 2316 Sensors 5332 | . . . . . . . . . . . 476 1015 1311 950 . . . 1580 Terrain 1 | . . . . . . . . . . . . . . . 1 . . . Cloaking 68 | . . . . . . . . . . . . . 68 . . . . . Robot Analysis Total . | . . . . . . . . . . . . . . . . . . . Derelict Logs Recovered 10 | . . 2 4 . . . . . . . 1 3 . . . . . . Drone Launches 3 | . . . . . . . . . . . . . . . . . . 3 Drone Recoveries 1 | . . . . . . . . . . . . . . . . . . 1 Exploration | -11 -10 -10 -8 -6 -6 -6 -6 -6 -5 -4 -4 -4 -4 -3 -3 -2 -2 -1 ------------- Run | Yrd Mat Sub Scr Fac Ext Cet Arc Hub Fac Fac Upp Upp War Pro Res Res Qua Acc Turns Passed 21840 | 44 951 2815 1049 1119 1737 367 139 415 1676 977 523 1015 1371 1647 2182 1086 399 2328 Spaces Moved 10564 | 31 551 1592 643 489 729 169 67 175 836 552 284 413 777 503 1172 556 191 834 Core 370 | 2 . . . . . . . . 65 135 . . . 73 52 . . 43 Treads 8016 | . 271 1592 643 489 729 169 67 175 771 308 24 202 79 279 688 556 191 783 Legs 290 | . 280 . . . . . . . . 10 . . . . . . . . Wheels 1888 | 29 . . . . . . . . . 99 260 211 698 151 432 . . 8 Hover . | . . . . . . . . . . . . . . . . . . . Flight . | . . . . . . . . . . . . . . . . . . . Fastest Speed 50 | 50 120 160 160 165 165 160 160 160 50 50 140 140 155 155 95 165 165 50 Average Speed 167 | 98 139 160 161 165 165 160 160 160 151 138 150 204 166 268 166 165 165 176 Slowest Speed 500 | 100 190 160 165 165 165 165 160 160 160 270 270 270 270 500 500 165 165 465 Overloaded Moves . | . . . . . . . . . . . . . . . . . . . Propulsion Burnouts . | . . . . . . . . . . . . . . . . . . . Robots Hopped . | . . . . . . . . . . . . . . . . . . . Potential Cave-ins . | . . . . . . . . . . . . . . . . . . . Cave-ins Triggered . | . . . . . . . . . . . . . . . . . . . Exploration Rate (%) 45 | 3 81 70 47 14 82 56 75 15 30 8 51 60 89 62 31 26 35 23 Regions Visited 18 Branch Regions 11 Pre-discovered Areas 5 | . . 2 2 . . . . . . . . 1 . . . . . . Known Exits Taken 9 | . . . . 1 1 . . . . 1 1 1 1 1 1 . 1 . Unknown Exits Taken 9 | 1 1 1 1 . . 1 1 1 1 . . . . . . 1 . . Scrap Searched 16 | . . 4 3 . . . . . . . 3 4 . 2 . . . . Spaces Dug 48 | . . 2 . 9 3 . . 5 4 2 . . . . 8 . 2 13 Terrain Destroyed 835 | . 2 3 . 85 24 3 5 208 129 34 3 8 1 33 26 36 17 218 Melee 1 | . . . . . . . . . . . . . . . 1 . . . Projectile 411 | . . 3 . 14 24 3 5 29 53 12 3 8 1 23 25 36 17 155 AOE 423 | . 2 . . 71 . . . 179 76 22 . . . 10 . . . 63 Terrain Rammed . | . . . . . . . . . . . . . . . . . . . Walls Destroyed . | . . . . . . . . . . . . . . . . . . . Machines Disabled . | . . . . . . . . . . . . . . . . . . . Actions | -11 -10 -10 -8 -6 -6 -6 -6 -6 -5 -4 -4 -4 -4 -3 -3 -2 -2 -1 --------- Run | Yrd Mat Sub Scr Fac Ext Cet Arc Hub Fac Fac Upp Upp War Pro Res Res Qua Acc Total 13285 | 42 656 1762 657 662 1127 238 86 225 1080 684 345 553 853 746 1347 664 245 1313 Wait 1151 | . 27 82 1 47 85 44 9 14 103 34 35 112 41 186 32 49 30 220 Move 10545 | 30 550 1591 642 488 728 168 66 174 835 551 283 412 776 502 1171 555 190 833 Hop . | . . . . . . . . . . . . . . . . . . . Pick Up 139 | 7 11 9 6 15 2 . 2 . 14 8 3 7 8 3 18 5 4 17 Fast Attach 88 | 5 3 2 . 6 . 3 . 3 3 23 . . 5 1 21 4 . 9 Attach 65 | . 1 . . 7 . . . . 10 8 2 . 1 6 7 3 . 20 Detach 14 | . . . . . . . . . 1 2 1 . . 4 2 . . 4 Swap 145 | . 10 7 2 16 22 5 2 . 12 4 4 5 8 3 27 6 1 11 Drop 170 | . 12 9 6 20 7 7 2 . 22 2 2 4 13 1 34 10 5 14 Fire 712 | . 38 62 . 62 65 11 5 34 76 43 15 13 1 40 29 31 14 173 Melee 13 | . . . . . . . . . . 7 . . . . 6 . . . Ram 2 | . . . . . . . . . 1 . . . . . . . . 1 Kick 3 | . 3 . . . . . . . . . . . . . . . . . Crush 21 | . 1 . . 1 1 . . . 3 2 . . . . . 1 1 11 Escape Stasis 4 | . . . . . 4 . . . . . . . . . . . . . Rewire 213 | . . . . . 213 . . . . . . . . . . . . . Trap . | . . . . . . . . . . . . . . . . . . . Miscellaneous . | . . . . . . . . . . . . . . . . . . . Route ------- -11/Scrapyard -10/Materials (discovered 5 exits: [*Mat x3] / [*Min] / *Sub) -10/Subcaves (discovered 4 exits: [*Mat x2] / [*Scr x2]) -8/Scraptown -6/Factory (discovered 4 exits: Low x2 / *Ext x2) -6/Extension (discovered 2 exits: *Fac / *Cet) -6/Cetus (discovered 2 exits: *Fac / [*Arc]) -6/Archives (discovered 2 exits: *Fac / [*Hub]) -6/Hub_04(d) -5/Factory (discovered 2 exits: *Fac / [*Upp]) -4/Factory -4/Upper Caves -4/Upper Caves (discovered 2 exits: *Res / *War) -4/Warlord -3/Proximity Caves -3/Research (discovered 3 exits: *Res x2 / Arm) -2/Research (discovered 2 exits: *Acc / *Qua) -2/Quarantine -1/Access To Epsilon Eridani History --------- Turn | Location | Event 24 | -11/Scrapyard | Discovered new exit (range 16) 45 | -11/Scrapyard | Entered Materials 46 | -10/Materials | Met a group of wandering Federalists 127 | -10/Materials | Discovered new exit (range 5) 220 | -10/Materials | Discovered new exit (range 10) 336 | -10/Materials | Build established: Mutant 367 | -10/Materials | Discovered new exit (range 16) 487 | -10/Materials | Discovered new exit (range 13) 560 | -10/Materials | Discovered new exit (range 15) 996 | -10/Materials | Entered Subcaves 997 | -10/Subcaves | Continued accompanying wandering Federalists (5) 997 | -10/Subcaves | Approached by a straggling Scientist 1009 | -10/Subcaves | Shifting Twisted Machinery released Sub. Beam Cannon 1039 | -10/Subcaves | Shifting Twisted Machinery released Shrapnel Trap 1234 | -10/Subcaves | Wandering Federalist uncovered a shortcut to Scraptown 1939 | -10/Subcaves | Learned 2 Materials zone layouts 1967 | -10/Subcaves | Disturbed a concealed Subdweller 2095 | -10/Subcaves | Scientist uncovered a shortcut to Scraptown 2283 | -10/Subcaves | Shifting Twisted Machinery released Sub. Machine Gun 2303 | -10/Subcaves | Core integrity fell below 50% 2332 | -10/Subcaves | Shifting Twisted Machinery released Sub. Monowheel 2372 | -10/Subcaves | Discovered new exit (range 8) 2837 | -10/Subcaves | Discovered new exit (range 6) 2951 | -10/Subcaves | Shifting Twisted Machinery released Sub. Optics 3178 | -10/Subcaves | Learned location of Zion (-6) 3178 | -10/Subcaves | Met a Zionite searching for "candidates" 3495 | -10/Subcaves | Visited Clippyterm 3500 | -10/Subcaves | Learned Factory fabricator intel 3500 | -10/Subcaves | Learned Factory emergency access door positions 3702 | -10/Subcaves | Learned location of Mines (-8) 3811 | -10/Subcaves | Entered Scraptown 3959 | -8/Scraptown | Scanned Subdweller tech in exchange for log data 3962 | -8/Scraptown | Learned 8 Research zone layouts 3965 | -8/Scraptown | Learned Research security intel 3967 | -8/Scraptown | Learned location of Testing (-3) 4017 | -8/Scraptown | Visited Spacefarers 4565 | -8/Scraptown | Visited CR-KLE's Repair Center 4580 | -8/Scraptown | CR-KLE repaired 5 parts 4626 | -8/Scraptown | Visited Red Mages 4803 | -8/Scraptown | Discovered new exit (range 11) 4860 | -8/Scraptown | Entered Factory 4860 | -6/Factory | Evolved 8 slots: Propulsion x2, Utility x4, Weapon x2 4862 | -6/Factory | Loaded intel: 6 fabricator locations 5337 | -6/Factory | Build established: Tank 5407 | -6/Factory | Spotted B-75 Beast 5414 | -6/Factory | Destroyed B-75 Beast 5451 | -6/Factory | Garrison activated, responded to threat 5790 | -6/Factory | Identified exit to Lower Caves 5790 | -6/Factory | Identified exit to Extension 5881 | -6/Factory | Garrison activated, responded to threat 5910 | -6/Factory | First assault squad dispatched 5933 | -6/Factory | Destroyed 7 combat bots 5979 | -6/Factory | Entered Extension 6045 | -6/Extension | Rescued a captive Derelict 6046 | -6/Extension | Rescued a captive Derelict 6496 | -6/Extension | Rescued A7 6620 | -6/Extension | Rescued a captive Derelict 6621 | -6/Extension | Rescued a captive Derelict 6866 | -6/Extension | Spotted B-75 Beast 6876 | -6/Extension | Destroyed B-75 Beast 6880 | -6/Extension | Spotted B-75 Beast 6907 | -6/Extension | Allies destroyed B-75 Beast 6911 | -6/Extension | Build established: Gunner 6927 | -6/Extension | P-60 Hacker assimilated allied ZF-NY5(g) 6933 | -6/Extension | Lost 4 allies 7225 | -6/Extension | Rescued a captive Derelict 7226 | -6/Extension | Rescued a captive Derelict 7251 | -6/Extension | Rescued a captive Derelict 7420 | -6/Extension | Build established: Commander-Tank 7493 | -6/Extension | Identified exit to Cetus 7668 | -6/Extension | Discovered new exit (range 10) 7716 | -6/Extension | Entered Cetus 7716 | -6/Cetus | Accompanied by 16 allies (A7) 7721 | -6/Cetus | Acquired a Cetus Manufacturing Module code from A7 7740 | -6/Cetus | Spotted Cetus Guard 7740 | -6/Cetus | Spotted Cetus Guard 7742 | -6/Cetus | Spotted Cetus Guard 7743 | -6/Cetus | Destroyed Cetus Guard 7746 | -6/Cetus | Destroyed Cetus Guard 7747 | -6/Cetus | Spotted Cetus Guard 7755 | -6/Cetus | Destroyed Cetus Guard 7758 | -6/Cetus | Allies destroyed Cetus Guard 7870 | -6/Cetus | Started Cetus Manufacturing Module 7890 | -6/Cetus | Discovered new exit (range 16) 7895 | -6/Cetus | Manufactured an Enhanced Grunt 7920 | -6/Cetus | Manufactured an Enhanced Grunt 7925 | -6/Cetus | Spotted Cetus Guard 7926 | -6/Cetus | Spotted Cetus Guard 7932 | -6/Cetus | Allies destroyed Cetus Guard 7933 | -6/Cetus | Spotted Cetus Guard 7934 | -6/Cetus | Allies destroyed Cetus Guard 7934 | -6/Cetus | Spotted Cetus Guard 7936 | -6/Cetus | Allies destroyed Cetus Guard 7940 | -6/Cetus | Destroyed Cetus Guard 7945 | -6/Cetus | Manufactured an Enhanced Grunt 7953 | -6/Cetus | Discovered new exit (range 15) 7961 | -6/Cetus | Met Revision 17 7970 | -6/Cetus | Manufactured an Enhanced Grunt 7995 | -6/Cetus | Manufactured an Enhanced Grunt 8083 | -6/Cetus | Entered Archives 8083 | -6/Archives | Accompanied by 18 allies (A7) 8150 | -6/Archives | Lost 7 allies 8168 | -6/Archives | Discovered new exit (range 14) 8183 | -6/Archives | Discovered new exit (range 15) 8222 | -6/Archives | Entered Hub_04(d) 8222 | -6/Hub_04(d) | Accompanied by 10 allies 8512 | -6/Hub_04(d) | Discovered new exit (range 8) 8525 | -6/Hub_04(d) | Destroyed 9 combat bots 8572 | -6/Hub_04(d) | First assault squad dispatched 8609 | -6/Hub_04(d) | Network Hub disabled 8615 | -6/Hub_04(d) | Spotted Lightning 8617 | -6/Hub_04(d) | Spotted Lightning 8619 | -6/Hub_04(d) | Spotted Lightning 8624 | -6/Hub_04(d) | System corruption reached 10% 8637 | -6/Hub_04(d) | Entered Factory 8637 | -5/Factory | Evolved 2 slots: Power x1, Utility x1 8663 | -5/Factory | Lost 6 allies 8667 | -5/Factory | Lost 3 parts (3w) 8895 | -5/Factory | Build established: Scavenger-Tank 8995 | -5/Factory | Discovered new exit (range 12) 9298 | -5/Factory | Found Prototype Launcher 9298 | -5/Factory | Identified Scatter Rocket Array 9537 | -5/Factory | First assault squad dispatched 10001 | -5/Factory | High security lockdown imminent 10025 | -5/Factory | Destroyed 14 combat bots 10081 | -5/Factory | High security lockdown engaged 10287 | -5/Factory | Destroyed 7 combat bots 10305 | -5/Factory | Discovered new exit (range 15) 10312 | -5/Factory | Found Imp. Powered Armor 10313 | -5/Factory | Entered another Factory area 10313 | -4/Factory | Evolved 2 slots: Utility x1, Weapon x1 10366 | -4/Factory | Lost 11 parts (1p2n3u5w) 10813 | -4/Factory | First assault squad dispatched 10833 | -4/Factory | Build established: Scavenger-Mutant 11001 | -4/Factory | Discovered new exit (range 16) 11127 | -4/Factory | Lost 7 parts (1p2n2u2w) 11290 | -4/Factory | Identified exit to Upper Caves 11290 | -4/Factory | Entered Upper Caves 11595 | -4/Upper Caves | Build established: Scavenger-Tank 11651 | -4/Upper Caves | Encountered a Warlord checkpoint 11736 | -4/Upper Caves | Learned Research terminal intel 11792 | -4/Upper Caves | Discovered new exit (range 5) 11794 | -4/Upper Caves | Identified exit to Upper Caves 11813 | -4/Upper Caves | Entered another Upper Caves area 11870 | -4/Upper Caves | Discovered new exit (range 14) 11945 | -4/Upper Caves | Identified exit to Research 12327 | -4/Upper Caves | Identified exit to Warlord 12365 | -4/Upper Caves | Learned Research trap positions 12365 | -4/Upper Caves | Learned Extension security intel 12365 | -4/Upper Caves | Learned Extension terminal intel 12365 | -4/Upper Caves | Learned Armory terminal intel 12368 | -4/Upper Caves | A Commander dispatched an escort 12566 | -4/Upper Caves | Learned Research emergency access door positions 12828 | -4/Upper Caves | Entered Warlord 12828 | -4/Warlord | Accompanied by 1 ally 12829 | -4/Warlord | Commander's escort returned to base 12920 | -4/Warlord | System corruption cleaned by Quarantine Array 13198 | -4/Warlord | Met Warlord 13223 | -4/Warlord | Warlord's base attacked by MAIN.C 13573 | -4/Warlord | Warlord forces counterattacked 13643 | -4/Warlord | Found Prototype Energy Cannon 13643 | -4/Warlord | Identified Vortex Driver 13649 | -4/Warlord | Found Vortex Driver 13654 | -4/Warlord | Found Prototype Energy Gun 13654 | -4/Warlord | Identified Vortex Rifle 13661 | -4/Warlord | Found Vortex Rifle 13725 | -4/Warlord | Learned Quarantine trap positions 13725 | -4/Warlord | Learned Quarantine emergency access door positions 13725 | -4/Warlord | Learned 4 Armory zone layouts 13725 | -4/Warlord | Learned Quarantine security intel 13725 | -4/Warlord | Learned Research repair station intel 13840 | -4/Warlord | Found Prototype Device 13840 | -4/Warlord | Identified Exp. Cloaking Device 13848 | -4/Warlord | Found Prototype Processor 13848 | -4/Warlord | Identified Exp. Armor Integrity Analyzer 13865 | -4/Warlord | Found Prototype Reactor 13898 | -4/Warlord | Warlord base infiltrated, sounded retreat 14166 | -4/Warlord | Discovered new exit (range 15) 14188 | -4/Warlord | Identified exit to Proximity Caves 14193 | -4/Warlord | Lost 16 allies 14199 | -4/Warlord | Entered Proximity Caves 15187 | -3/Proximity Caves | Lost 4 parts (1n3u) 15441 | -3/Proximity Caves | Spotted B-86 Titan 15480 | -3/Proximity Caves | Destroyed B-86 Titan 15510 | -3/Proximity Caves | Lost 7 parts (3n4w) 15733 | -3/Proximity Caves | Build established: Mutant 15831 | -3/Proximity Caves | Discovered exit to Research (range 3) 15846 | -3/Proximity Caves | Entered Research 15846 | -3/Research | Evolved 2 slots: Utility x2 15847 | -3/Research | Identified exit to Armory 15847 | -3/Research | Identified exit to Research 15848 | -3/Research | Loaded intel: 91 trap records 15851 | -3/Research | Loaded intel: 24 terminal locations 15852 | -3/Research | Loaded intel: 4 repair station locations 16046 | -3/Research | Revision forces began assault on 0b10 16059 | -3/Research | Met up with Revision 17++ 16500 | -3/Research | Build established: Scavenger-Gunner 16546 | -3/Research | Research terminal network offline 16633 | -3/Research | Discovered exit to Research (range 9) 16729 | -3/Research | Found Prototype Device 16729 | -3/Research | Identified Exp. Terrain Scanner 17320 | -3/Research | Spotted Striker 17651 | -3/Research | Build established: Gunner 17830 | -3/Research | Spotted Striker 17833 | -3/Research | Destroyed Striker 17901 | -3/Research | Spotted Striker 17901 | -3/Research | Spotted Striker 17904 | -3/Research | Spotted Striker 17907 | -3/Research | Destroyed Striker 17934 | -3/Research | Spotted Striker 17995 | -3/Research | Lost 6 allies 18028 | -3/Research | Entered another Research area 18028 | -2/Research | Warlord forces began assault on 0b10 18028 | -2/Research | Evolved 2 slots: Propulsion x1, Utility x1 18123 | -2/Research | Lost 3 allies 18138 | -2/Research | Research machine network offline 18259 | -2/Research | Borebot progress halted 18316 | -2/Research | Spotted Executioner 18327 | -2/Research | Destroyed Executioner 18328 | -2/Research | Spotted Executioner 18396 | -2/Research | Found Prototype Processor 18396 | -2/Research | Identified Exp. Targeting Computer 18400 | -2/Research | Found Prototype Processor 18400 | -2/Research | Identified Exp. Core Analyzer 18457 | -2/Research | Met DD-05H 18494 | -2/Research | Discovered new exit (range 19) 18509 | -2/Research | Borebot progress halted 18568 | -2/Research | Met up with Warlord 18705 | -2/Research | Build established: Scavenger-Gunner 18872 | -2/Research | Borebot progress halted 18997 | -2/Research | Spotted Striker 19001 | -2/Research | Destroyed Striker 19016 | -2/Research | Spotted Executioner 19018 | -2/Research | Destroyed Executioner 19023 | -2/Research | Spotted Executioner 19029 | -2/Research | Warlord invited to help at Command 19029 | -2/Research | Given Cave Seal Controls access code 19049 | -2/Research | Spotted Striker 19049 | -2/Research | Spotted Executioner 19059 | -2/Research | Destroyed Executioner 19074 | -2/Research | Discovered new exit (range 19) 19087 | -2/Research | Lost 12 allies 19114 | -2/Research | Entered Quarantine 19115 | -2/Quarantine | Loaded intel: 19 trap records 19130 | -2/Quarantine | Found Alien Artifact 19185 | -2/Quarantine | Found Alien Artifact 19310 | -2/Quarantine | Identified exit to Access 19513 | -2/Quarantine | Entered Access 19513 | -1/Access | Evolved 2 slots: Utility x2 19514 | -1/Access | Identified Phase Redirector 19516 | -1/Access | Identified Subatomic Replicator 19637 | -1/Access | Lost 6 allies 19655 | -1/Access | Destroyed 7 combat bots 19759 | -1/Access | Destroyed 8 combat bots 19901 | -1/Access | Build established: Scavenger-Tank 20400 | -1/Access | Used Subatomic Replicator to replicate Hrd. Heavy Armor Plating 20439 | -1/Access | System corruption reached 10% 20509 | -1/Access | Build established: Scavenger-Gunner 20838 | -1/Access | Found Prototype Processor 20838 | -1/Access | Identified Exp. Signal Interpreter 20897 | -1/Access | Spotted B-99 Colossus 20897 | -1/Access | Spotted B-99 Colossus 21263 | -1/Access | First assault squad dispatched 21330 | -1/Access | Build established: Scavenger-Tank 21525 | -1/Access | Garrison activated, responded to threat 21551 | -1/Access | Identified Vortex Chain Reactor 21608 | -1/Access | Lost 7 parts (1p3n2u1w) 21622 | -1/Access | Destroyed 12 combat bots 21663 | -1/Access | System corruption reached 30% 21707 | -1/Access | Lost 5 parts (1n2u2w) 21715 | -1/Access | Destroyed 8 combat bots 21746 | -1/Access | High security lockdown imminent 21799 | -1/Access | Core integrity fell below 50% 21826 | -1/Access | High security lockdown engaged 21830 | -1/Access | Core integrity fell below 20% 21840 | -1/Access | Discovered new exit (range 4) 21841 | -1/Access | Identified exit to Surface 21841 | *** | Escaped! Last Messages --------------- 21825_ Slug penetrates Wall. 21826_ ALERT: Lockdown in effect, collecting threat data. 21826_ Slug penetrates Wall. 21827_ Slammed into H-88 Terminator. 21827_ Destabilizing: Core damaged (-32). 21828_ Penetrated by Slug. 21828_ Slug penetrates Wall. 21829_ Exp. Optical Array destroyed. 21829_ Critical hit (Blast). 21829_ Slug penetrates W-44 Eye. 21833_ Vortex penetrates Sealed Barrier. 21835_ System corrupted: Energy discharge (-211). 21835_ Vortex penetrates Sealed Barrier. 21835_ Sealed Barrier breached. 21836_ Penetrated by Slug. 21839_ Slug penetrates Sealed Barrier. 21840_ EXIT=FOUND 21841_ EXIT=IDENTIFIED: SURFACE Map ----- +----------------------------------------------------+ | # ##! +*! #"" = #?????????????? | | #= #"! !#![ #"" #?????????????? | | + ### [##=* #????? #?????????????? | | ################!!##! #????????????????????? | | ###???????######[ ## #????????????????????? | | ################ ###########????????????????????? | | # %! #[ ##??######?????????????????????? | | # %%=# ##?????????????????????????????? | | # !# *##############?????? ?????????? | | # "" " =!+!% %%% % ????????? | | " # ""T""![#[[ % %% ????????? | | " # "" |!###########+##########? ?????????? | | """ # ### ? ??????????????? #????????? | | """ # #??#?? ! ?????????????# #????????? | | " ###########?????? ???????????# #????????? | | " #???????###??????? ??????????# H#????????? | | #??????????????????"""Y"????????# #????????? | | #???????????????????"""""???????# #????????? | | #????????????????????####???????# #????????? | | ######???????????????????????????????# #????????? | | ??????????????????????????####"####### #????????? | | ??????????????? "????????? " #????????? | | ???????????? "????????? " #????????? | | ########## "????"""""" " #????????? | | "????" " " #????????? | | "????" "@ " " #????????? | | "????" "" " " #????????? | | "????" " " #????????? | | ########## "????"""" #????????? | | #???????????????" """" """ #????????? | | #???????????????" """"T""" #????????? | | #???????????????##########"####### #????????? | | #????????????????????????????????# %#????#???? | | #????????????????????????????????# ########## | | #???????????????????????????????## # | | ! #??########????????????#########"# # | | #??# !!!#????????????# " # + | | #####??# !! #????????????# """ # # | | #??????# !! ###??###?##### """ + %# =! | | #??????# # """""" # " # # / | | #?????## # """""" # # %# | | #?????## # """""" # # *# | | ##########+# ## """""" ""# =*% #=%# | | # # """""" ""# !%[ # !# | | ########## # # ""######"""## # | | # # # T#??# # | | # # ## ""#??# %= ########## | | # #### ! ""#??# % #????????? | | !|| # #??# ""???#|| ! = ##???????? | | !| # #???? ???#|| #????????? | +----------------------------------------------------+ Best States ------------- Heat Dissipation 121 Energy Generation 55 Energy Capacity 1300 Matter Stores 300 Matter Capacity 300 Sight Range 23 Robot Scan Range 16 Terrain Scan Range 30 Terrain Scan Density 10 Cloak Strength 4 Armor Coverage 1650 Resistance: KI 25 Utility Shielding 66 Weapon Cycling 20 Evasion (%) 55 Targeting Accuracy 24 Core Analysis 8 Armor Integrity Analysis 50 Recoil Reduction 5 Particle Charging 20 Kinecelleration 40 Defensive Hacking 12 Item Schematics ----------------- None Robot Schematics ------------------ None Fabricated ------------ Nothing Repaired ---------- Nothing Alien Tech Used ----------------- Phase Redirector Subatomic Replicator Achievements -------------- None Challenges ------------ None Game ------ Seed ThermoelectricZioniteRailgun Manual? 0 Play Time 03:33:42 Cumulative 369.3 hours Start 2025.10.15 @ 00:12:39 End 2025.10.16 @ 20:23:57 Sessions 3 Manual Loads 0 Difficulty Rogue Special Mode None Game No. 179 Rogue 179 Adventurer 0 Explorer 0 Win Type 0 Total 11 Types 8/0/2/0/0/0/0/0/0/1 Lore% 83 Gallery% 82 Achievement% 70 Wizard Run 0 Options --------- Layout 1 ASCII 0 Keyboard 0 Movement Mouse Keybinds 0 Fullscreen 1 Font 24/Smallcaps Map View 50x35 Zoom Use 0% Tactical HUD 1 Map Filters NONE Filters NONE Steam 1 RUN: 399575e6-f594-41e1-8354-2214e266c8e2